bitfinex-derivatives/quotes_SOLF0:USTF0_20251018
["timestamp","ask_amount","ask_price","bid_price","bid_amount"]
[1760766848586,4.8812,184.33,184.28,2.76]
[1760766848784,2.88,184.31,184.28,2.76]
[1760766848984,2.88,184.32,184.28,2.76]
[1760766849194,4.8812,184.33,184.28,2.76]
[1760766849398,2.88,184.31,184.28,2.76]
[1760766852692,2.88,184.31,184.29,2.81]
[1760766864216,2.76,184.32,184.29,2.81]
[1760766864418,6.8750237,184.31,184.29,2.81]
[1760766864715,2.76,184.31,184.29,2.81]
[1760766866714,4.11622488,184.3,184.29,2.81]
[1760766868319,6.87622488,184.3,184.29,2.81]
[1760766869717,4.11622488,184.3,184.29,2.81]
[1760766870920,6.87622488,184.3,184.29,2.81]
[1760766872825,4.11622488,184.3,184.29,2.81]
[1760766874132,2.76,184.33,184.29,2.81]
[1760766874331,2.76,184.31,184.29,2.81]
[1760766876235,2.76,184.35,184.25,2.81]
[1760766876434,4.11554426,184.34,184.25,2.81]
[1760766876638,4.11554426,184.33,184.27,2.81]
[1760766876935,2.76,184.35,184.27,2.81]
[1760766876936,4.11554426,184.32,184.27,2.81]
[1760766877128,2.76,184.35,184.27,2.81]
[1760766877325,4.11518006,184.34,184.27,2.81]
[1760766877526,4.11518006,184.33,184.27,2.81]
[1760766877735,4.11518006,184.32,184.27,2.81]
[1760766877936,7.6406,184.35,184.29,4.882]
[1760766878137,2.76,184.33,184.3,2.81]
[1760766878338,2.76,184.33,184.31,2.81]
[1760766878836,7.64,184.37,184.31,2.81]
[1760766879031,2.76,184.35,184.3,4.8816]
[1760766879239,6.87415826,184.34,184.32,2.81]
[1760766879539,2.76,184.34,184.32,2.81]
[1760766880038,4.88,184.37,184.3,4.8816]
[1760766880039,2.76,184.36,184.31,2.81]
[1760766880333,6.87299317,184.35,184.32,2.81]
[1760766880537,2.76,184.35,184.32,2.81]
[1760766880738,2.76,184.35,184.3,4.8816]
[1760766881038,4.88,184.37,184.31,4.8814]
[1760766881242,4.111712,184.36,184.32,2.89]
[1760766881440,7.6295,184.39,184.32,2.89]
[1760766881634,4.10994205,184.38,184.32,2.89]
[1760766881835,4.10994205,184.37,184.29,2.89]
[1760766882038,7.6295,184.39,184.29,2.89]
[1760766882237,4.10994166,184.38,184.29,2.89]
[1760766882436,4.10994166,184.37,184.29,2.89]
[1760766882637,7.6295,184.39,184.29,2.89]
[1760766882836,4.10835202,184.38,184.29,2.89]
[1760766883142,6.85835202,184.37,184.33,2.89]
[1760766883340,2.75,184.37,184.33,2.89]
[1760766883741,2.75,184.37,184.33,4.8809]
[1760766884045,2.75,184.37,184.34,2.89]
[1760766884739,2.75,184.37,184.33,4.8809]
[1760766884939,2.75,184.37,184.34,2.89]
[1760766886247,2.75,184.37,184.31,4.8814]
[1760766886445,2.84,184.35,184.31,4.8814]
[1760766886636,2.84,184.39,184.31,4.8814]
[1760766886942,2.84,184.36,184.31,4.8814]
[1760766887137,2.84,184.39,184.31,4.8814]
[1760766887445,2.84,184.37,184.31,4.8814]
[1760766887745,2.84,184.35,184.32,2.68]
[1760766887936,4.8801,184.37,184.32,2.68]
[1760766888141,2.84,184.35,184.32,2.68]
[1760766890242,2.84,184.35,184.31,4.8814]
[1760766890449,2.84,184.35,184.32,2.68]
[1760766891639,2.84,184.35,184.31,4.8814]
[1760766892046,2.84,184.35,184.32,2.68]
[1760766894246,2.84,184.35,184.31,4.8814]
[1760766895754,4.10341971,184.37,184.29,2.68]
[1760766895952,2.84,184.38,184.29,2.68]
[1760766896149,4.10337812,184.37,184.29,2.68]
[1760766896450,2.84,184.38,184.29,2.68]
[1760766897056,2.84,184.38,184.32,7.561]
[1760766897753,4.1028824,184.37,184.32,7.561]
[1760766897953,4.8796,184.39,184.32,7.561]
[1760766897954,4.8796,184.39,184.33,2.68]
[1760766898160,2.84,184.37,184.33,2.68]
[1760766898351,2.84,184.38,184.33,2.68]
[1760766898551,2.84,184.36,184.33,2.68]
[1760766898854,2.84,184.38,184.33,2.68]
[1760766899052,2.84,184.36,184.33,2.68]
[1760766899354,4.8796,184.39,184.33,2.68]
[1760766899555,2.84,184.37,184.33,2.68]
[1760766899758,2.84,184.38,184.33,2.68]
[1760766899952,4.8796,184.39,184.33,2.68]
[1760766900250,2.84,184.36,184.33,2.68]
[1760766904258,2.84,184.37,184.33,2.68]
[1760766904459,2.84,184.38,184.33,2.68]
[1760766904963,4.8796,184.39,184.33,2.68]
[1760766905160,2.67,184.37,184.33,2.68]
[1760766905464,2.67,184.38,184.33,2.68]
[1760766905765,4.8796,184.39,184.33,2.68]
[1760766905956,2.67,184.37,184.33,2.68]
[1760766906158,2.67,184.36,184.33,2.68]
[1760766906760,2.67,184.36,184.34,2.81]
[1760766907556,2.67,184.38,184.34,4.8806]
[1760766907862,2.67,184.38,184.29,44.88]
[1760766907863,2.67,184.38,184.3,2.81]
[1760766908961,2.67,184.38,184.35,4.8804]
[1760766909165,2.67,184.38,184.36,2.81]
[1760766913567,6.91937965,184.4,184.37,2.86]
[1760766913766,4.08937965,184.39,184.38,2.86]
[1760766914068,2.83,184.41,184.32,2.86]
[1760766914267,4.08979068,184.4,184.32,2.86]
[1760766914468,2.83,184.41,184.32,2.86]
[1760766914767,4.08956386,184.4,184.32,2.86]
[1760766914968,2.83,184.41,184.37,4.8798]
[1760766915270,6.92016674,184.4,184.38,2.86]
[1760766915470,2.83,184.4,184.38,2.86]
[1760766916266,2.83,184.41,184.39,2.86]
[1760766916766,2.83,184.43,184.39,2.86]
[1760766916967,2.83,184.41,184.39,2.86]
[1760766917168,2.83,184.43,184.39,2.86]
[1760766917368,2.83,184.41,184.38,4.8796]
[1760766917570,2.83,184.4,184.38,4.8796]
[1760766917869,2.83,184.4,184.38,7.7396]
[1760766918070,4.8783,184.44,184.39,2.86]
[1760766918268,4.09116863,184.43,184.39,2.86]
[1760766918470,2.83,184.41,184.39,2.86]
[1760766921276,2.83,184.41,184.4,2.86]
[1760766921480,6.92129086,184.41,184.39,2.86]
[1760766921776,2.83,184.41,184.39,2.86]
[1760766927480,4.8783,184.44,184.38,4.8796]
[1760766927684,4.09028564,184.43,184.38,4.8796]
[1760766927981,2.83,184.4,184.38,7.7396]
[1760766929975,2.83,184.41,184.36,7.7401]
[1760766930176,6.21629646,184.43,184.36,7.7401]
[1760766930371,2.83,184.41,184.36,7.7401]
[1760766930571,2.83,184.42,184.36,4.8801]
[1760766930770,2.83,184.39,184.37,2.86]
[1760766931372,2.83,184.4,184.37,2.86]
[1760766931680,6.21629646,184.43,184.37,2.86]
[1760766931681,2.83,184.42,184.37,2.86]
[1760766931977,2.83,184.4,184.37,2.86]
[1760766932182,2.83,184.42,184.37,2.86]
[1760766932479,2.83,184.39,184.37,2.86]
[1760766933176,4.16769646,184.4,184.33,2.86]
[1760766933381,4.0507018,184.39,184.34,7.7407]
[1760766933576,2.83,184.36,184.34,7.7407]
[1760766936381,4.16769646,184.4,184.35,2.86]
[1760766936683,6.88170995,184.39,184.35,2.86]
[1760766936879,6.88170995,184.39,184.34,4.8807]
[1760766936880,2.83,184.39,184.36,2.86]
[1760766937080,2.83,184.39,184.35,2.86]
[1760766937483,1.33769646,184.4,184.36,2.86]
[1760766937683,2.83,184.38,184.36,2.86]
[1760766939188,1.33769646,184.4,184.36,2.86]
[1760766939483,1.33769646,184.4,184.32,2.86]
[1760766939682,6.94444535,184.42,184.37,2.86]
[1760766939882,6.88228191,184.41,184.38,2.86]
[1760766940184,6.88228191,184.4,184.38,2.86]
[1760766940384,2.83,184.4,184.38,2.86]
[1760766942088,2.83,184.4,184.36,4.8801]
[1760766942280,2.83,184.4,184.38,2.81]
[1760766942788,2.83,184.4,184.36,4.8801]
[1760766942985,2.83,184.4,184.37,2.81]
[1760766943191,2.83,184.4,184.36,4.8801]
[1760766943386,4.11444535,184.42,184.37,2.81]
[1760766943690,6.69322423,184.41,184.37,2.81]
[1760766943890,2.64,184.41,184.31,46.17769646]
[1760766944080,3.97769646,184.43,184.32,2.81]
[1760766944283,4.05335882,184.42,184.35,2.81]
[1760766944486,4.05335882,184.41,184.4,2.81]
[1760766944993,4.05335882,184.41,184.36,4.88]
[1760766945193,2.64,184.42,184.37,2.81]
[1760766945395,4.05330466,184.41,184.37,2.81]
[1760766945593,2.64,184.42,184.37,2.81]
[1760766945793,4.05330226,184.41,184.37,2.81]
[1760766945991,2.64,184.42,184.38,4.8796]
[1760766946291,4.03534703,184.41,184.4,2.81]
[1760766947088,4.11555657,184.44,184.38,2.81]
[1760766947291,4.03531542,184.43,184.38,2.81]
[1760766947489,4.03531542,184.42,184.38,2.81]
[1760766947691,6.75555657,184.45,184.38,2.81]
[1760766947886,4.03534142,184.44,184.38,2.81]
[1760766948086,2.64,184.42,184.4,4.879]
[1760766948290,2.64,184.42,184.4,7.689]
[1760766950096,4.03491952,184.45,184.42,2.81]
[1760766950293,4.11555657,184.48,184.37,2.81]
[1760766950496,4.03426398,184.47,184.39,1.33769646]
[1760766950697,4.03426398,184.46,184.4,2.81]
[1760766950897,6.75555657,184.48,184.42,7.6884]
[1760766951197,2.64,184.46,184.43,2.81]
[1760766951397,2.64,184.46,184.44,2.81]
[1760766951596,2.64,184.48,184.4,2.81]
[1760766953003,8.92156432,184.51,184.44,4.878]
[1760766953202,2.64,184.47,184.45,2.81]
[1760766953390,2.64,184.48,184.44,4.878]
[1760766953792,2.64,184.48,184.46,2.81]
[1760766953996,1.33769646,184.52,184.42,1.33769646]
[1760766953997,6.66949846,184.49,184.42,1.33769646]
[1760766954196,4.02942959,184.51,184.43,2.81]
[1760766954398,4.02942959,184.5,184.43,2.81]
[1760766954701,4.02750253,184.51,184.48,4.8769]
[1760766954903,2.64,184.52,184.49,2.81]
[1760766955104,6.6673095,184.51,184.49,2.81]
[1760766955304,2.64,184.51,184.49,2.81]
[1760766958596,2.64,184.56,184.49,4.8766]
[1760766958801,2.64,184.55,184.49,7.6866]
[1760766958997,4.00609008,184.56,184.49,7.6866]
[1760766959203,2.64,184.55,184.49,7.6866]
[1760766961802,4.00609008,184.56,184.49,7.6866]
[1760766962002,2.64,184.56,184.49,7.6866]
[1760766962208,6.21249646,184.57,184.49,7.6866]
[1760766962508,2.64,184.51,184.45,2.81]
[1760766962695,2.64,184.49,184.41,2.81]
[1760766963502,2.64,184.49,184.43,4.8783]
[1760766963705,1.33769646,184.48,184.41,2.81]
[1760766964005,2.64,184.47,184.41,2.81]
[1760766964606,2.64,184.47,184.39,2.81]
[1760766966009,2.64,184.47,184.44,2.65]
[1760766966806,1.33769646,184.48,184.44,2.65]
[1760766967110,2.68,184.47,184.44,2.65]
[1760766971109,4.8767,184.5,184.44,2.75]
[1760766971311,2.86,184.5,184.44,7.628]
[1760766971509,2.86,184.5,184.44,2.75]
[1760766973016,2.86,184.5,184.41,1.33769646]
[1760766973017,1.33769646,184.51,184.45,4.8777]
[1760766973213,2.86,184.5,184.45,4.8777]
[1760766973414,1.33769646,184.51,184.45,4.8777]
[1760766973619,2.86,184.5,184.45,4.8777]
[1760766974211,1.33769646,184.51,184.45,4.8777]
[1760766974615,2.86,184.5,184.45,7.6277]
[1760766974815,4.19769646,184.51,184.45,7.6277]
[1760766975417,2.86,184.51,184.45,7.6277]
[1760766976823,2.86,184.51,184.46,2.75]
[1760766978422,2.86,184.5,184.47,2.75]
[1760766979228,2.86,184.54,184.48,4.8769]
[1760766979429,2.86,184.54,184.49,2.75]
[1760766979723,2.86,184.56,184.49,2.75]
[1760766980223,4.8756,184.54,184.49,2.75]
[1760766980627,2.86,184.52,184.49,2.75]
[1760766981131,7.735,184.56,184.43,2.75]
[1760766982024,2.86,184.55,184.5,4.8764]
[1760766982235,4.875,184.56,184.5,4.8764]
[1760766982422,2.86,184.55,184.5,7.6264]
[1760766982622,2.86,184.54,184.5,7.6264]
[1760766982822,4.875,184.56,184.5,7.6264]
[1760766983028,2.86,184.55,184.5,7.6264]
[1760766983330,4.875,184.56,184.5,7.6264]
[1760766983525,2.86,184.55,184.5,7.6264]
[1760766983835,4.875,184.56,184.5,7.6264]
[1760766984330,2.86,184.55,184.5,7.6264]
[1760766984731,2.86,184.54,184.5,7.6264]
[1760766984932,2.86,184.55,184.5,7.6264]
[1760766985230,4.875,184.56,184.5,4.8764]
[1760766985531,4.875,184.56,184.51,2.75]
[1760766985935,2.86,184.55,184.51,2.75]
[1760766986527,2.86,184.54,184.51,2.75]
[1760766986726,4.875,184.56,184.51,2.75]
[1760766986931,2.86,184.54,184.51,2.75]
[1760766987129,4.875,184.56,184.51,2.75]
[1760766987330,2.86,184.54,184.51,2.75]
[1760766988135,2.86,184.55,184.51,2.75]
[1760766988437,4.875,184.56,184.51,2.75]
[1760766988637,2.86,184.55,184.51,2.75]
[1760766988832,2.86,184.54,184.51,2.75]
[1760766989033,2.86,184.55,184.51,2.75]
[1760766989925,4.875,184.56,184.51,2.75]
[1760766990127,2.86,184.55,184.51,2.75]
[1760766990330,2.86,184.54,184.51,2.75]
[1760766990537,2.86,184.55,184.51,2.75]
[1760766991038,4.875,184.56,184.51,2.75]
[1760766991436,8.86325283,184.56,184.51,2.75]
[1760766991636,4.875,184.56,184.51,2.75]
[1760766992032,2.86,184.55,184.51,2.75]
[1760766992228,8.86356544,184.56,184.51,2.75]
[1760766992434,2.86,184.55,184.51,2.75]
[1760766992841,4.875,184.56,184.51,2.75]
[1760766993038,8.86484887,184.56,184.51,2.75]
[1760766993343,3.9913935,184.55,184.53,2.75]
[1760766993545,6.8513935,184.57,184.53,2.75]
[1760766993740,2.86,184.55,184.46,2.75]
[1760766994335,2.86,184.55,184.51,4.8761]
[1760766994538,2.86,184.55,184.52,2.75]
[1760766995141,2.86,184.55,184.53,2.75]
[1760766997338,6.88667834,184.58,184.52,2.75]
[1760766997540,2.86,184.61,184.52,2.75]
[1760766997743,3.99345822,184.6,184.52,2.75]
[1760766997948,2.86,184.61,184.52,2.75]
[1760766998150,3.99345822,184.6,184.52,2.75]
[1760766998450,2.86,184.61,184.52,2.75]
[1760766998649,3.9925011,184.6,184.52,2.75]
[1760766998945,4.8737,184.61,184.54,4.8753]
[1760766999149,2.86,184.59,184.54,4.8753]
[1760766999445,2.86,184.6,184.54,4.8753]
[1760766999846,6.85113801,184.6,184.54,4.8753]
[1760767001248,2.86,184.6,184.54,4.8753]
[1760767003052,4.8737,184.61,184.56,2.68]
[1760767003354,2.66,184.6,184.56,2.68]
[1760767003551,4.8737,184.61,184.56,2.68]
[1760767004447,2.66,184.6,184.56,2.68]
[1760767004843,4.8737,184.61,184.56,2.68]
[1760767005048,2.66,184.6,184.56,2.68]
[1760767005650,2.66,184.6,184.57,2.68]
[1760767006050,4.8737,184.61,184.57,2.68]
[1760767006248,2.66,184.6,184.57,2.68]
[1760767006748,4.8737,184.61,184.57,2.68]
[1760767006944,2.66,184.6,184.57,2.68]
[1760767007142,4.8737,184.61,184.57,2.68]
[1760767007747,2.66,184.6,184.57,2.68]
[1760767008156,4.8737,184.61,184.57,2.68]
[1760767008357,2.66,184.6,184.57,2.68]
[1760767008550,4.8737,184.61,184.57,2.68]
[1760767009055,2.66,184.6,184.57,2.68]
[1760767009355,2.66,184.6,184.55,4.8751]
[1760767009754,7.5332,184.63,184.57,2.68]
[1760767011050,7.5332,184.63,184.57,7.5545]
[1760767011856,2.66,184.66,184.53,2.68]
[1760767012057,2.66,184.66,184.51,2.08785946]
[1760767012058,2.66,184.66,184.55,2.68]
[1760767012858,4.8717,184.69,184.6,4.8737]
[1760767013063,2.66,184.68,184.61,2.68]
[1760767013962,7.5319,184.68,184.61,2.68]
[1760767014165,7.5319,184.68,184.61,7.5535]
[1760767014871,7.5319,184.68,184.61,4.8735]
[1760767015060,7.5319,184.68,184.62,2.68]
[1760767018767,8.84372329,184.71,184.63,4.8731]
[1760767018968,15.08,184.72,184.63,7.5531]
[1760767019158,2.66,184.71,184.63,7.5531]
[1760767019558,4.8715,184.7,184.63,7.5531]
[1760767019862,2.66,184.68,184.63,7.5531]
[1760767020063,2.66,184.69,184.63,7.5531]
[1760767020572,2.66,184.68,184.63,7.5531]
[1760767021270,4.8717,184.69,184.63,7.5531]
[1760767021574,2.66,184.67,184.63,7.5531]
[1760767021767,4.8717,184.69,184.63,2.68]
[1760767021970,2.66,184.69,184.55,2.68]
[1760767022363,2.66,184.66,184.55,2.68]
[1760767022572,2.66,184.64,184.57,4.8745]
[1760767022771,4.8727,184.65,184.57,7.5545]
[1760767023071,2.66,184.63,184.57,7.5545]
[1760767023867,2.66,184.64,184.57,7.5545]
[1760767024072,2.66,184.63,184.57,7.5545]
[1760767030575,2.66,184.63,184.58,4.8742]
[1760767030969,2.66,184.63,184.6,2.84]
[1760767031175,2.66,184.63,184.58,4.8742]
[1760767031369,2.66,184.63,184.6,2.84]
[1760767031984,2.66,184.63,184.59,2.84]
[1760767032174,2.66,184.63,184.6,2.84]
[1760767032376,2.66,184.63,184.57,2.84]
[1760767035381,1.33487371,184.62,184.54,7.7154]
[1760767035583,2.73,184.61,184.54,7.7154]
[1760767036378,2.73,184.61,184.51,1.33487371]
[1760767036379,1.33487371,184.58,184.51,4.8762]
[1760767036583,2.73,184.57,184.51,7.7162]
[1760767037881,2.73,184.57,184.52,2.84]
[1760767038080,2.73,184.57,184.53,2.84]
[1760767038589,2.73,184.57,184.51,4.8762]
[1760767039086,4.06487371,184.58,184.52,2.84]
[1760767040480,4.06487371,184.58,184.51,4.8762]
[1760767040679,2.73,184.57,184.5,2.84]
[1760767041981,4.8754,184.55,184.5,2.84]
[1760767042183,2.73,184.53,184.5,2.84]
[1760767042773,2.73,184.54,184.5,2.84]
[1760767042983,2.73,184.53,184.48,2.84]
[1760767043281,2.73,184.53,184.48,4.8769]
[1760767043583,2.73,184.53,184.5,2.84]
[1760767044485,2.73,184.53,184.48,4.8769]
[1760767044685,4.8747,184.57,184.5,2.84]
[1760767044887,4.06487371,184.58,184.5,2.84]
[1760767046086,2.73,184.58,184.52,2.84]
[1760767047580,1.33487371,184.54,184.41,2.84]
[1760767047783,2.73,184.46,184.31,10.08395623]
[1760767047979,2.73,184.43,184.33,1.33487371]
[1760767048684,2.73,184.43,184.36,4.17487371]
[1760767049787,1.33487371,184.47,184.37,2.84]
[1760767049788,2.73,184.46,184.37,2.84]
[1760767050987,2.73,184.46,184.38,4.8795]
[1760767052294,2.73,184.46,184.39,2.84]
[1760767053693,2.73,184.46,184.4,2.84]
[1760767054393,3.97623918,184.58,184.42,4.17487371]
[1760767054394,2.73,184.49,184.42,4.17487371]
[1760767054893,2.73,184.49,184.42,9.05327371]
[1760767056486,2.73,184.49,184.42,6.21327371]
[1760767056687,2.73,184.49,184.45,1.33487371]
[1760767056893,2.73,184.49,184.45,4.17487371]
[1760767059094,7.6058,184.53,184.45,1.33487371]
[1760767059294,2.73,184.53,184.48,1.33487371]
[1760767059504,2.73,184.58,184.48,1.33487371]
[1760767060995,4.8755,184.55,184.48,1.33487371]
[1760767061198,2.77,184.54,184.48,1.33487371]
[1760767067407,2.77,184.54,184.48,4.05487371]
[1760767068299,2.77,184.54,184.49,2.72]
[1760767068499,2.77,184.54,184.51,1.33487371]
[1760767068696,2.77,184.54,184.52,2.72]
[1760767070001,2.77,184.57,184.5,4.8764]
[1760767070204,2.77,184.57,184.5,6.21127371]
[1760767073906,2.77,184.57,184.51,2.72]
[1760767085620,7.6448,184.57,184.51,2.72]
[1760767093021,3.98358065,184.59,184.45,4.8779]
[1760767093022,4.8762,184.52,184.45,4.8779]
[1760767093325,2.8,184.51,184.43,2.81]
[1760767093525,2.8,184.51,184.45,4.8777]
[1760767093727,2.8,184.51,184.43,2.81]
[1760767093728,2.8,184.53,184.43,2.81]
[1760767095021,2.8,184.52,184.46,4.8774]
[1760767095229,2.8,184.52,184.46,7.6874]
[1760767095719,1.33487371,184.53,184.46,7.6874]
[1760767095919,5.32580564,184.53,184.46,7.6874]
[1760767096119,2.8,184.52,184.46,7.6874]
[1760767097028,2.8,184.51,184.46,7.6874]
[1760767097229,4.8761,184.52,184.46,7.6874]
[1760767097832,2.8,184.5,184.47,2.81]
[1760767098527,2.8,184.51,184.47,2.81]
[1760767098834,2.8,184.5,184.47,2.81]
[1760767100837,4.8761,184.52,184.47,2.81]
[1760767101236,2.8,184.5,184.47,2.81]
[1760767101441,2.8,184.51,184.47,2.81]
[1760767101841,2.8,184.5,184.47,2.81]
[1760767103043,2.8,184.51,184.47,2.81]
[1760767103240,2.8,184.49,184.43,2.81]
[1760767104738,6.79713991,184.52,184.41,2.81]
[1760767104940,3.99713991,184.51,184.41,2.81]
[1760767105140,2.8,184.52,184.41,2.81]
[1760767106043,4.8763,184.51,184.45,7.6877]
[1760767106247,2.8,184.5,184.45,7.6877]
[1760767106441,7.6763,184.51,184.45,4.8777]
[1760767106645,7.6763,184.51,184.45,7.6877]
[1760767112240,7.6763,184.51,184.45,4.8777]
[1760767112446,7.6763,184.51,184.46,2.81]
[1760767112646,2.8,184.5,184.47,2.81]
[1760767113352,2.8,184.5,184.48,2.81]
[1760767123161,2.67,184.53,184.47,7.5771]
[1760767123852,2.67,184.53,184.48,4.8769]
[1760767124257,2.67,184.53,184.5,2.7]
[1760767127061,4.8755,184.54,184.5,2.7]
[1760767127247,2.67,184.53,184.5,2.7]
[1760767127450,4.8755,184.54,184.5,2.7]
[1760767127654,2.67,184.53,184.5,2.7]
[1760767127951,2.67,184.53,184.49,2.7]
[1760767128553,2.67,184.53,184.48,4.8769]
[1760767128754,2.67,184.53,184.5,2.7]
[1760767129358,4.8755,184.54,184.5,2.7]
[1760767129553,2.67,184.52,184.5,2.7]
[1760767130053,5.02994942,184.58,184.44,76.73861732]
[1760767130054,4.04488655,184.56,184.52,2.7]
[1760767130362,2.67,184.6,184.52,2.7]
[1760767130661,2.67,184.58,184.52,2.7]
[1760767130960,2.67,184.58,184.52,7.5758]
[1760767131655,2.67,184.58,184.54,2.7]
[1760767132056,2.67,184.58,184.55,2.7]
[1760767135766,2.67,184.58,184.54,2.7]
[1760767135962,2.67,184.58,184.55,2.7]
[1760767136864,2.67,184.58,184.53,4.8756]
[1760767137164,2.67,184.58,184.55,2.7]
[1760767139464,4.8741,184.6,184.55,2.7]
[1760767139660,2.67,184.59,184.55,2.7]
[1760767139866,4.8741,184.6,184.55,2.7]
[1760767140761,2.67,184.59,184.55,2.7]
[1760767141361,4.8741,184.6,184.55,2.7]
[1760767141764,2.67,184.62,184.55,2.7]
[1760767142161,2.67,184.62,184.55,7.5751]
[1760767145865,7.5435,184.62,184.55,7.5751]
[1760767147073,2.89,184.61,184.5,2.86]
[1760767147575,4.8753,184.55,184.5,2.86]
[1760767147974,2.89,184.54,184.5,2.86]
[1760767148470,2.89,184.53,184.5,2.86]
[1760767148675,2.89,184.54,184.5,2.86]
[1760767148977,2.89,184.53,184.5,2.86]
[1760767150176,2.89,184.54,184.5,2.86]
[1760767150375,4.8753,184.55,184.5,2.86]
[1760767150576,2.89,184.53,184.5,2.86]
[1760767151472,2.69,184.54,184.5,2.86]
[1760767151878,2.69,184.53,184.5,2.86]
[1760767153580,4.8753,184.55,184.49,2.72]
[1760767155273,2.69,184.54,184.49,2.72]
[1760767155473,2.69,184.53,184.48,4.8769]
[1760767155673,2.69,184.53,184.49,2.72]
[1760767155876,2.69,184.53,184.48,4.8769]
[1760767156078,2.69,184.53,184.49,2.72]
[1760767156581,2.69,184.53,184.48,4.8769]
[1760767156779,2.69,184.53,184.49,2.72]
[1760767157271,2.69,184.53,184.48,4.8769]
[1760767157272,2.69,184.53,184.5,2.72]
[1760767157673,2.69,184.53,184.49,2.72]
[1760767157877,2.69,184.53,184.5,2.72]
[1760767159080,2.69,184.53,184.48,4.8769]
[1760767159280,2.69,184.53,184.5,2.72]
[1760767162583,4.01914091,184.56,184.49,2.72]
[1760767162789,7.5648,184.57,184.51,3.86472224]
[1760767163087,2.69,184.6,184.51,3.86472224]
[1760767163299,9.09487538,184.61,184.51,3.86472224]
[1760767163300,4.0197138,184.59,184.51,3.86472224]
[1760767163584,2.69,184.57,184.51,3.86472224]
[1760767163779,2.69,184.6,184.51,3.86472224]
[1760767163985,4.8751,184.56,184.51,3.86472224]
[1760767164286,2.69,184.54,184.52,2.72]
[1760767167981,2.69,184.54,184.51,1.14472224]
[1760767168182,2.69,184.54,184.52,2.72]
[1760767171889,7.5646,184.58,184.53,2.72]
[1760767172090,2.69,184.57,184.54,2.72]
[1760767172487,2.69,184.56,184.54,2.72]
[1760767172689,4.8746,184.58,184.53,2.72]
[1760767172992,2.69,184.57,184.55,2.72]
[1760767177493,4.874,184.6,184.54,2.72]
[1760767177686,2.69,184.58,184.54,2.72]
[1760767177890,2.69,184.58,184.53,4.8756]
[1760767178094,2.69,184.58,184.55,2.72]
[1760767178296,2.69,184.58,184.53,4.8756]
[1760767178594,2.69,184.58,184.54,2.72]